[Event "Titled Tuesday Blitz May 2 Early 2023"]
[White "Ibarra Jerez, Jose Carlos"]
[Black "Khamdamova, Afruza"]
[WhiteFideId "2226332"]
[BlackFideId "14210444"]
[WhiteElo "2638"]
[BlackElo "2210"]
[Result "1-0"]
[Round "01"]
[TimeControl "180+2"]
[Date "2023.05.02"]
[WhiteClock "0:00:00"]
[BlackClock "0:00:00"]

1. e4 {[%clk 0:00:01]}  e5 {[%clk 0:00:01]} 2. Nf3 {[%clk 0:00:01]}  Nf6 {[%clk 0:00:01]} 3. Nc3 {[%clk 0:00:01]}  Nc6 {[%clk 0:00:01]} 4. h3 {[%clk 0:00:01]}  Bc5 {[%clk 0:00:01]} 5. Nxe5 {[%clk 0:00:01]}  Nxe5 {[%clk 0:00:01]} 6. d4 {[%clk 0:00:01]}  Bd6 {[%clk 0:00:01]} 7. dxe5 {[%clk 0:00:01]}  Bxe5 {[%clk 0:00:01]} 8. Bd3 {[%clk 0:00:01]}  O-O {[%clk 0:00:01]} 9. O-O {[%clk 0:00:01]}  Re8 {[%clk 0:00:01]} 10. Nb5 {[%clk 0:00:01]}  c6 {[%clk 0:00:01]} 11. f4 {[%clk 0:00:01]}  Bb8 {[%clk 0:00:01]} 12. Nc3 {[%clk 0:00:01]}  d6 {[%clk 0:00:01]} 13. Qf3 {[%clk 0:00:01]}  a5 {[%clk 0:00:01]} 14. b3 {[%clk 0:00:01]}  b5 {[%clk 0:00:01]} 15. Bb2 {[%clk 0:00:01]}  Bb7 {[%clk 0:00:01]} 16. Rae1 {[%clk 0:00:01]}  b4 {[%clk 0:00:01]} 17. Nd1 {[%clk 0:00:01]}  c5 {[%clk 0:00:00]} 18. Qg3 {[%clk 0:00:01]}  Nh5 {[%clk 0:00:00]} 19. Qg4 {[%clk 0:00:01]}  Nf6 {[%clk 0:00:00]} 20. Qg3 {[%clk 0:00:01]}  Nh5 {[%clk 0:00:00]} 21. Qf3 {[%clk 0:00:01]}  Nf6 {[%clk 0:00:00]} 22. Nf2 {[%clk 0:00:01]}  Ba7 {[%clk 0:00:00]} 23. Kh2 {[%clk 0:00:00]}  a4 {[%clk 0:00:00]} 24. Ng4 {[%clk 0:00:00]}  Nxg4+ {[%clk 0:00:00]} 25. Qxg4 {[%clk 0:00:00]}  f6 {[%clk 0:00:00]} 26. e5 {[%clk 0:00:00]}  Bc8 {[%clk 0:00:00]} 27. Qh5 {[%clk 0:00:00]}  f5 {[%clk 0:00:00]} 28. exd6 {[%clk 0:00:00]}  Bd7 {[%clk 0:00:00]} 29. Bc4+ {[%clk 0:00:00]}  Kh8 {[%clk 0:00:00]} 30. Qf7 {[%clk 0:00:00]}  Rg8 {[%clk 0:00:00]} 31. Re7 {[%clk 0:00:00]} 1-0


[Site "https://www.chess.com"]

[Event "Titled Tuesday Blitz May 2 Early 2023"]
[White "Khandelwal, Ankush"]
[Black "Van Foreest, Jorden"]
[WhiteFideId "413470"]
[BlackFideId "1039784"]
[WhiteElo "2263"]
[BlackElo "2633"]
[Result "0-1"]
[Round "01"]
[TimeControl "180+2"]
[Date "2023.05.02"]
[WhiteClock "0:00:00"]
[BlackClock "0:00:00"]

1. e4 {[%clk 0:00:01]}  c5 {[%clk 0:00:01]} 2. Nf3 {[%clk 0:00:01]}  Nc6 {[%clk 0:00:01]} 3. d4 {[%clk 0:00:01]}  cxd4 {[%clk 0:00:01]} 4. Nxd4 {[%clk 0:00:01]}  e6 {[%clk 0:00:01]} 5. Nc3 {[%clk 0:00:01]}  a6 {[%clk 0:00:01]} 6. Nxc6 {[%clk 0:00:01]}  bxc6 {[%clk 0:00:01]} 7. Bd3 {[%clk 0:00:01]}  d5 {[%clk 0:00:01]} 8. O-O {[%clk 0:00:01]}  Nf6 {[%clk 0:00:01]} 9. Re1 {[%clk 0:00:01]}  Be7 {[%clk 0:00:01]} 10. e5 {[%clk 0:00:01]}  Nd7 {[%clk 0:00:01]} 11. Qg4 {[%clk 0:00:01]}  Kf8 {[%clk 0:00:01]} 12. Bd2 {[%clk 0:00:01]}  h5 {[%clk 0:00:01]} 13. Qf4 {[%clk 0:00:00]}  Rb8 {[%clk 0:00:01]} 14. b3 {[%clk 0:00:00]}  Rb4 {[%clk 0:00:01]} 15. Qf3 {[%clk 0:00:00]}  Kg8 {[%clk 0:00:01]} 16. a3 {[%clk 0:00:00]}  Rb8 {[%clk 0:00:01]} 17. Bf4 {[%clk 0:00:00]}  Bg5 {[%clk 0:00:01]} 18. Rad1 {[%clk 0:00:00]}  a5 {[%clk 0:00:01]} 19. Ne2 {[%clk 0:00:00]}  Qe7 {[%clk 0:00:01]} 20. a4 {[%clk 0:00:00]}  Rb4 {[%clk 0:00:01]} 21. Qg3 {[%clk 0:00:00]}  Bxf4 {[%clk 0:00:01]} 22. Nxf4 {[%clk 0:00:00]}  h4 {[%clk 0:00:01]} 23. Qe3 {[%clk 0:00:00]}  Qc5 {[%clk 0:00:01]} 24. Qd2 {[%clk 0:00:00]}  Bb7 {[%clk 0:00:00]} 25. Rb1 {[%clk 0:00:00]}  Qd4 {[%clk 0:00:00]} 26. g3 {[%clk 0:00:00]}  Nxe5 {[%clk 0:00:00]} 27. Be2 {[%clk 0:00:00]}  Qxd2 {[%clk 0:00:00]} 0-1


[Site "https://www.chess.com"]

[Event "Titled Tuesday Blitz May 2 Early 2023"]
[White "Daneshvar, Bardiya"]
[Black "Karwowski, Kacper"]
[WhiteFideId "12576468"]
[BlackFideId "1126032"]
[WhiteElo "2468"]
[BlackElo "2261"]
[Result "1-0"]
[Round "01"]
[TimeControl "180+2"]
[Date "2023.05.02"]
[WhiteClock "0:00:00"]
[BlackClock "0:00:00"]

1. Nf3 {[%clk 0:00:01]}  Nf6 {[%clk 0:00:01]} 2. g3 {[%clk 0:00:01]}  g6 {[%clk 0:00:01]} 3. b4 {[%clk 0:00:01]}  Bg7 {[%clk 0:00:01]} 4. Bb2 {[%clk 0:00:01]}  O-O {[%clk 0:00:01]} 5. Bg2 {[%clk 0:00:01]}  c6 {[%clk 0:00:01]} 6. O-O {[%clk 0:00:01]}  a5 {[%clk 0:00:01]} 7. a3 {[%clk 0:00:01]}  axb4 {[%clk 0:00:01]} 8. axb4 {[%clk 0:00:01]}  Rxa1 {[%clk 0:00:01]} 9. Bxa1 {[%clk 0:00:01]}  Qb6 {[%clk 0:00:01]} 10. Bxf6 {[%clk 0:00:01]}  Bxf6 {[%clk 0:00:01]} 11. c3 {[%clk 0:00:01]}  d5 {[%clk 0:00:01]} 12. Na3 {[%clk 0:00:01]}  Bg4 {[%clk 0:00:01]} 13. h3 {[%clk 0:00:01]}  Bxf3 {[%clk 0:00:01]} 14. Bxf3 {[%clk 0:00:01]}  Nd7 {[%clk 0:00:01]} 15. Qb3 {[%clk 0:00:01]}  Ra8 {[%clk 0:00:01]} 16. Nc2 {[%clk 0:00:01]}  Ne5 {[%clk 0:00:01]} 17. Bg2 {[%clk 0:00:01]}  Nc4 {[%clk 0:00:01]} 18. Rd1 {[%clk 0:00:01]}  h5 {[%clk 0:00:01]} 19. d3 {[%clk 0:00:01]}  Nd6 {[%clk 0:00:01]} 20. e3 {[%clk 0:00:01]}  e6 {[%clk 0:00:01]} 21. c4 {[%clk 0:00:01]}  Nf5 {[%clk 0:00:01]} 22. d4 {[%clk 0:00:01]}  Qa6 {[%clk 0:00:00]} 23. cxd5 {[%clk 0:00:01]}  cxd5 {[%clk 0:00:00]} 24. Ra1 {[%clk 0:00:01]}  Qxa1+ {[%clk 0:00:00]} 25. Nxa1 {[%clk 0:00:01]}  Rxa1+ {[%clk 0:00:00]} 26. Bf1 {[%clk 0:00:01]}  Nd6 {[%clk 0:00:00]} 27. Kg2 {[%clk 0:00:01]}  Ne4 {[%clk 0:00:00]} 28. Bd3 {[%clk 0:00:01]}  Be7 {[%clk 0:00:00]} 29. Bxe4 {[%clk 0:00:01]}  dxe4 {[%clk 0:00:00]} 30. d5 {[%clk 0:00:01]}  exd5 {[%clk 0:00:00]} 31. Qxd5 {[%clk 0:00:01]}  Bxb4 {[%clk 0:00:00]} 32. Qxb7 {[%clk 0:00:01]}  Be1 {[%clk 0:00:00]} 33. Qb8+ {[%clk 0:00:00]}  Kh7 {[%clk 0:00:00]} 34. Qc7 {[%clk 0:00:00]}  Kg8 {[%clk 0:00:00]} 35. Qd8+ {[%clk 0:00:00]}  Kh7 {[%clk 0:00:00]} 36. Qe7 {[%clk 0:00:00]}  Ra5 {[%clk 0:00:00]} 37. Qxf7+ {[%clk 0:00:00]}  Kh6 {[%clk 0:00:00]} 38. Qf4+ {[%clk 0:00:00]}  Kg7 {[%clk 0:00:00]} 39. Qxe4 {[%clk 0:00:00]}  Rf5 {[%clk 0:00:00]} 40. f4 {[%clk 0:00:00]} 1-0


[Site "https://www.chess.com"]

[Event "Titled Tuesday Blitz May 2 Early 2023"]
[White "Kramnik, Vladimir"]
[Black "Andreev, Konstantin"]
[WhiteFideId "4101588"]
[BlackFideId "24239305"]
[WhiteElo "2712"]
[BlackElo "2106"]
[Result "0-1"]
[Round "01"]
[TimeControl "180+2"]
[Date "2023.05.02"]
[WhiteClock "0:00:00"]
[BlackClock "0:00:00"]

1. Nf3 {[%clk 0:00:01]}  Nf6 {[%clk 0:00:01]} 2. g3 {[%clk 0:00:01]}  b5 {[%clk 0:00:01]} 3. Bg2 {[%clk 0:00:01]}  Bb7 {[%clk 0:00:01]} 4. O-O {[%clk 0:00:01]}  e6 {[%clk 0:00:01]} 5. d3 {[%clk 0:00:01]}  Be7 {[%clk 0:00:01]} 6. e4 {[%clk 0:00:01]}  d6 {[%clk 0:00:01]} 7. Nd4 {[%clk 0:00:01]}  Qd7 {[%clk 0:00:01]} 8. Nb3 {[%clk 0:00:01]}  a5 {[%clk 0:00:01]} 9. e5 {[%clk 0:00:01]}  Bxg2 {[%clk 0:00:01]} 10. exf6 {[%clk 0:00:01]}  Bxf1 {[%clk 0:00:01]} 11. fxe7 {[%clk 0:00:01]}  Bh3 {[%clk 0:00:01]} 12. Qf3 {[%clk 0:00:01]}  Qc6 {[%clk 0:00:01]} 13. Nd4 {[%clk 0:00:01]}  Qxf3 {[%clk 0:00:01]} 14. Nxf3 {[%clk 0:00:01]}  Kxe7 {[%clk 0:00:01]} 15. Nc3 {[%clk 0:00:01]}  c6 {[%clk 0:00:01]} 16. Ng5 {[%clk 0:00:01]}  Bf5 {[%clk 0:00:01]} 17. Ne2 {[%clk 0:00:01]}  h6 {[%clk 0:00:01]} 18. Nf3 {[%clk 0:00:01]}  Bg4 {[%clk 0:00:01]} 19. Kg2 {[%clk 0:00:01]}  Bxf3+ {[%clk 0:00:01]} 20. Kxf3 {[%clk 0:00:01]}  Nd7 {[%clk 0:00:01]} 21. Kg2 {[%clk 0:00:01]}  c5 {[%clk 0:00:01]} 22. Bd2 {[%clk 0:00:01]}  a4 {[%clk 0:00:01]} 23. Re1 {[%clk 0:00:01]}  d5 {[%clk 0:00:01]} 24. Nf4 {[%clk 0:00:01]}  Kd6 {[%clk 0:00:01]} 25. g4 {[%clk 0:00:01]}  e5 {[%clk 0:00:01]} 26. Nh5 {[%clk 0:00:01]}  Rhg8 {[%clk 0:00:01]} 27. f4 {[%clk 0:00:01]}  Rae8 {[%clk 0:00:01]} 28. Ng3 {[%clk 0:00:01]}  g6 {[%clk 0:00:01]} 29. f5 {[%clk 0:00:01]}  h5 {[%clk 0:00:00]} 30. g5 {[%clk 0:00:01]}  h4 {[%clk 0:00:00]} 31. fxg6 {[%clk 0:00:01]}  fxg6 {[%clk 0:00:00]} 32. Nh1 {[%clk 0:00:01]}  Rgf8 {[%clk 0:00:00]} 33. Nf2 {[%clk 0:00:01]}  Rf5 {[%clk 0:00:00]} 34. Ng4 {[%clk 0:00:00]}  Ref8 {[%clk 0:00:00]} 35. a3 {[%clk 0:00:00]}  Rf3 {[%clk 0:00:00]} 36. Be3 {[%clk 0:00:00]}  h3+ {[%clk 0:00:00]} 37. Kg1 {[%clk 0:00:00]}  e4 {[%clk 0:00:00]} 38. d4 {[%clk 0:00:00]}  cxd4 {[%clk 0:00:00]} 39. Bxd4 {[%clk 0:00:00]}  R8f4 {[%clk 0:00:00]} 40. Ne3 {[%clk 0:00:00]}  Ne5 {[%clk 0:00:00]} 41. Rd1 {[%clk 0:00:00]}  Ng4 {[%clk 0:00:00]} 42. Nf1 {[%clk 0:00:00]}  Ke6 {[%clk 0:00:00]} 43. Ng3 {[%clk 0:00:00]}  Nf2 {[%clk 0:00:00]} 44. Re1 {[%clk 0:00:00]}  Ng4 {[%clk 0:00:00]} 45. c3 {[%clk 0:00:00]}  e3 {[%clk 0:00:00]} 46. Ne2 {[%clk 0:00:00]}  Rf5 {[%clk 0:00:00]} 47. Ng3 {[%clk 0:00:00]}  Rxg5 {[%clk 0:00:00]} 48. Re2 {[%clk 0:00:00]}  Rf2 {[%clk 0:00:00]} 49. Rxf2 {[%clk 0:00:00]}  exf2+ {[%clk 0:00:00]} 50. Bxf2 {[%clk 0:00:00]}  Nxf2 {[%clk 0:00:00]} 51. Kxf2 {[%clk 0:00:00]}  Re5 {[%clk 0:00:00]} 52. Ne2 {[%clk 0:00:00]}  Rxe2+ {[%clk 0:00:00]} 53. Kxe2 {[%clk 0:00:00]}  g5 {[%clk 0:00:00]} 54. Ke3 {[%clk 0:00:00]}  Ke5 {[%clk 0:00:00]} 55. Kf3 {[%clk 0:00:00]}  Kf5 {[%clk 0:00:00]} 56. Kg3 {[%clk 0:00:00]}  g4 {[%clk 0:00:00]} 57. Kf2 {[%clk 0:00:00]}  Kf4 {[%clk 0:00:00]} 58. Kg1 {[%clk 0:00:00]}  g3 {[%clk 0:00:00]} 59. hxg3+ {[%clk 0:00:00]}  Kxg3 {[%clk 0:00:00]} 60. Kh1 {[%clk 0:00:00]}  Kf3 {[%clk 0:00:00]} 61. Kh2 {[%clk 0:00:00]}  Ke3 {[%clk 0:00:00]} 0-1


[Site "https://www.chess.com"]

[Event "Titled Tuesday Blitz May 2 Early 2023"]
[White "Reefat, Bin-Sattar"]
[Black "Demchenko, Anton"]
[WhiteFideId "10200207"]
[BlackFideId "4160258"]
[WhiteElo "2462"]
[BlackElo "2545"]
[Result "0-1"]
[Round "01"]
[TimeControl "180+2"]
[Date "2023.05.02"]
[WhiteClock "0:00:00"]
[BlackClock "0:00:00"]

1. e4 {[%clk 0:00:01]}  e5 {[%clk 0:00:01]} 2. Nf3 {[%clk 0:00:01]}  Nc6 {[%clk 0:00:01]} 3. Bc4 {[%clk 0:00:01]}  d6 {[%clk 0:00:01]} 4. d4 {[%clk 0:00:01]}  Nf6 {[%clk 0:00:01]} 5. Nc3 {[%clk 0:00:01]}  Bg4 {[%clk 0:00:01]} 6. dxe5 {[%clk 0:00:01]}  Nxe5 {[%clk 0:00:01]} 7. Be2 {[%clk 0:00:01]}  Ng6 {[%clk 0:00:01]} 8. Be3 {[%clk 0:00:01]}  Be7 {[%clk 0:00:01]} 9. Qd2 {[%clk 0:00:01]}  O-O {[%clk 0:00:01]} 10. O-O-O {[%clk 0:00:01]}  c6 {[%clk 0:00:01]} 11. h4 {[%clk 0:00:01]}  b5 {[%clk 0:00:01]} 12. h5 {[%clk 0:00:01]}  Ne5 {[%clk 0:00:00]} 13. Nxe5 {[%clk 0:00:01]}  dxe5 {[%clk 0:00:00]} 14. Qe1 {[%clk 0:00:01]}  Qc7 {[%clk 0:00:00]} 15. h6 {[%clk 0:00:00]}  g6 {[%clk 0:00:00]} 16. Bg5 {[%clk 0:00:00]}  Be6 {[%clk 0:00:00]} 17. f4 {[%clk 0:00:00]}  b4 {[%clk 0:00:00]} 18. Na4 {[%clk 0:00:00]}  exf4 {[%clk 0:00:00]} 19. Qh4 {[%clk 0:00:00]}  Qe5 {[%clk 0:00:00]} 20. Bf3 {[%clk 0:00:00]}  Rfe8 {[%clk 0:00:00]} 21. Bxf4 {[%clk 0:00:00]}  Qa5 {[%clk 0:00:00]} 22. Bg5 {[%clk 0:00:00]}  Qxa4 {[%clk 0:00:00]} 23. Bxf6 {[%clk 0:00:00]}  Bf8 {[%clk 0:00:00]} 24. Bg7 {[%clk 0:00:00]}  Qxa2 {[%clk 0:00:00]} 25. Bxf8 {[%clk 0:00:00]}  Qa1+ {[%clk 0:00:00]} 26. Kd2 {[%clk 0:00:00]}  Qxb2 {[%clk 0:00:00]} 27. Bg7 {[%clk 0:00:00]}  Rad8+ {[%clk 0:00:00]} 0-1


[Site "https://www.chess.com"]

[Event "Titled Tuesday Blitz May 2 Early 2023"]
[White "Lenderman, Aleksandr"]
[Black "Omelja, Artem"]
[WhiteFideId "2021285"]
[BlackFideId "14119846"]
[WhiteElo "2607"]
[BlackElo "2404"]
[Result "1-0"]
[Round "01"]
[TimeControl "180+2"]
[Date "2023.05.02"]
[WhiteClock "0:00:01"]
[BlackClock "0:00:00"]

1. Nf3 {[%clk 0:00:01]}  Nf6 {[%clk 0:00:01]} 2. b3 {[%clk 0:00:01]}  e6 {[%clk 0:00:01]} 3. Bb2 {[%clk 0:00:01]}  b6 {[%clk 0:00:01]} 4. g3 {[%clk 0:00:01]}  Bb7 {[%clk 0:00:01]} 5. Bg2 {[%clk 0:00:01]}  c5 {[%clk 0:00:01]} 6. O-O {[%clk 0:00:01]}  d5 {[%clk 0:00:01]} 7. e3 {[%clk 0:00:01]}  Be7 {[%clk 0:00:01]} 8. c4 {[%clk 0:00:01]}  O-O {[%clk 0:00:01]} 9. Nc3 {[%clk 0:00:01]}  Nbd7 {[%clk 0:00:01]} 10. Qe2 {[%clk 0:00:01]}  Rc8 {[%clk 0:00:01]} 11. d3 {[%clk 0:00:01]}  Qc7 {[%clk 0:00:01]} 12. Rad1 {[%clk 0:00:01]}  Rfd8 {[%clk 0:00:01]} 13. Nh4 {[%clk 0:00:01]}  dxc4 {[%clk 0:00:01]} 14. bxc4 {[%clk 0:00:01]}  Bxg2 {[%clk 0:00:01]} 15. Kxg2 {[%clk 0:00:01]}  Qb7+ {[%clk 0:00:01]} 16. Kg1 {[%clk 0:00:01]}  Ne5 {[%clk 0:00:00]} 17. f4 {[%clk 0:00:01]}  Ng6 {[%clk 0:00:00]} 18. Nf3 {[%clk 0:00:01]}  Bf8 {[%clk 0:00:00]} 19. Ne5 {[%clk 0:00:01]}  Nd7 {[%clk 0:00:00]} 20. Nxg6 {[%clk 0:00:01]}  hxg6 {[%clk 0:00:00]} 21. Ne4 {[%clk 0:00:01]}  Be7 {[%clk 0:00:00]} 22. h4 {[%clk 0:00:01]}  Nf6 {[%clk 0:00:00]} 23. Bxf6 {[%clk 0:00:01]}  Bxf6 {[%clk 0:00:00]} 24. h5 {[%clk 0:00:01]}  gxh5 {[%clk 0:00:00]} 25. Qxh5 {[%clk 0:00:01]}  Be7 {[%clk 0:00:00]} 26. Kf2 {[%clk 0:00:01]}  Qa6 {[%clk 0:00:00]} 27. Rh1 {[%clk 0:00:01]}  f6 {[%clk 0:00:00]} 28. Rd2 {[%clk 0:00:01]}  Rc7 {[%clk 0:00:00]} 29. Kf3 {[%clk 0:00:01]}  Qb7 {[%clk 0:00:00]} 30. Qg6 {[%clk 0:00:01]}  Rcd7 {[%clk 0:00:00]} 31. Rdh2 {[%clk 0:00:01]} 1-0


[Site "https://www.chess.com"]

[Event "Titled Tuesday Blitz May 2 Early 2023"]
[White "Bethke, Richard"]
[Black "Ter-Sahakyan, Samvel"]
[WhiteFideId "12959243"]
[BlackFideId "13302531"]
[WhiteElo "2369"]
[BlackElo "2566"]
[Result "0-1"]
[Round "01"]
[TimeControl "180+2"]
[Date "2023.05.02"]
[WhiteClock "0:00:00"]
[BlackClock "0:00:01"]

1. e4 {[%clk 0:00:01]}  c5 {[%clk 0:00:01]} 2. Nf3 {[%clk 0:00:01]}  e6 {[%clk 0:00:01]} 3. d4 {[%clk 0:00:01]}  cxd4 {[%clk 0:00:01]} 4. Nxd4 {[%clk 0:00:01]}  Nf6 {[%clk 0:00:01]} 5. Nc3 {[%clk 0:00:01]}  Nc6 {[%clk 0:00:01]} 6. Ndb5 {[%clk 0:00:01]}  d6 {[%clk 0:00:01]} 7. Bf4 {[%clk 0:00:01]}  e5 {[%clk 0:00:01]} 8. Bg5 {[%clk 0:00:01]}  a6 {[%clk 0:00:01]} 9. Na3 {[%clk 0:00:01]}  b5 {[%clk 0:00:01]} 10. Nd5 {[%clk 0:00:01]}  Be7 {[%clk 0:00:01]} 11. Bxf6 {[%clk 0:00:01]}  Bxf6 {[%clk 0:00:01]} 12. c3 {[%clk 0:00:01]}  Rb8 {[%clk 0:00:01]} 13. Nc2 {[%clk 0:00:01]}  Bg5 {[%clk 0:00:01]} 14. a4 {[%clk 0:00:01]}  bxa4 {[%clk 0:00:01]} 15. Ncb4 {[%clk 0:00:01]}  Nxb4 {[%clk 0:00:01]} 16. cxb4 {[%clk 0:00:01]}  O-O {[%clk 0:00:01]} 17. Rxa4 {[%clk 0:00:01]}  a5 {[%clk 0:00:01]} 18. h4 {[%clk 0:00:01]}  Bh6 {[%clk 0:00:01]} 19. b5 {[%clk 0:00:01]}  Bd7 {[%clk 0:00:01]} 20. Nc3 {[%clk 0:00:01]}  d5 {[%clk 0:00:01]} 21. Qxd5 {[%clk 0:00:01]}  Bc1 {[%clk 0:00:01]} 22. Ra2 {[%clk 0:00:01]}  Be6 {[%clk 0:00:01]} 23. Qxd8 {[%clk 0:00:01]}  Rfxd8 {[%clk 0:00:01]} 24. Nd5 {[%clk 0:00:01]}  Bxd5 {[%clk 0:00:01]} 25. exd5 {[%clk 0:00:01]}  Rxd5 {[%clk 0:00:01]} 26. Bc4 {[%clk 0:00:01]}  Rd2 {[%clk 0:00:01]} 27. Rxa5 {[%clk 0:00:00]}  Rc2 {[%clk 0:00:01]} 28. Ra4 {[%clk 0:00:00]}  Bxb2 {[%clk 0:00:01]} 29. O-O {[%clk 0:00:00]}  Bd4 {[%clk 0:00:01]} 30. g3 {[%clk 0:00:00]}  g6 {[%clk 0:00:01]} 31. Kg2 {[%clk 0:00:00]}  Kg7 {[%clk 0:00:01]} 32. Kf3 {[%clk 0:00:00]}  f5 {[%clk 0:00:01]} 33. Ra7+ {[%clk 0:00:00]}  Bxa7 {[%clk 0:00:01]} 0-1


[Site "https://www.chess.com"]

[Event "Titled Tuesday Blitz May 2 Early 2023"]
[White "Salman, Pavel"]
[Black "Suleymanli, Aydin"]
[WhiteFideId "24153753"]
[BlackFideId "13413937"]
[WhiteElo "2187"]
[BlackElo "2559"]
[Result "0-1"]
[Round "01"]
[TimeControl "180+2"]
[Date "2023.05.02"]
[WhiteClock "0:00:00"]
[BlackClock "0:00:00"]

1. d4 {[%clk 0:00:01]}  Nf6 {[%clk 0:00:01]} 2. Nc3 {[%clk 0:00:01]}  d5 {[%clk 0:00:01]} 3. Bf4 {[%clk 0:00:01]}  a6 {[%clk 0:00:01]} 4. e3 {[%clk 0:00:01]}  Bg4 {[%clk 0:00:01]} 5. f3 {[%clk 0:00:01]}  Bd7 {[%clk 0:00:01]} 6. g4 {[%clk 0:00:01]}  e6 {[%clk 0:00:01]} 7. h4 {[%clk 0:00:01]}  c5 {[%clk 0:00:01]} 8. g5 {[%clk 0:00:01]}  Nh5 {[%clk 0:00:01]} 9. Bh2 {[%clk 0:00:01]}  Nc6 {[%clk 0:00:01]} 10. Nge2 {[%clk 0:00:01]}  g6 {[%clk 0:00:01]} 11. Qd2 {[%clk 0:00:01]}  b5 {[%clk 0:00:01]} 12. Bh3 {[%clk 0:00:01]}  b4 {[%clk 0:00:01]} 13. Na4 {[%clk 0:00:01]}  Nxd4 {[%clk 0:00:01]} 14. exd4 {[%clk 0:00:01]}  Bxa4 {[%clk 0:00:01]} 15. Nf4 {[%clk 0:00:01]}  Nxf4 {[%clk 0:00:01]} 16. Qxf4 {[%clk 0:00:01]}  Bg7 {[%clk 0:00:01]} 17. O-O-O {[%clk 0:00:00]}  cxd4 {[%clk 0:00:01]} 18. Rhe1 {[%clk 0:00:00]}  Rc8 {[%clk 0:00:01]} 19. Re2 {[%clk 0:00:00]}  Bb5 {[%clk 0:00:01]} 20. Rxe6+ {[%clk 0:00:00]}  fxe6 {[%clk 0:00:00]} 21. Bxe6 {[%clk 0:00:00]}  Rf8 {[%clk 0:00:00]} 22. Qd2 {[%clk 0:00:00]}  d3 {[%clk 0:00:00]} 23. Bxc8 {[%clk 0:00:00]}  Qxc8 {[%clk 0:00:00]} 24. Bd6 {[%clk 0:00:00]}  Rxf3 {[%clk 0:00:00]} 25. Re1+ {[%clk 0:00:00]}  Kf7 {[%clk 0:00:00]} 26. Bxb4 {[%clk 0:00:00]}  Be5 {[%clk 0:00:00]} 27. b3 {[%clk 0:00:00]}  Bf4 {[%clk 0:00:00]} 28. Re7+ {[%clk 0:00:00]}  Kg8 {[%clk 0:00:00]} 29. a4 {[%clk 0:00:00]}  Qxc2# {[%clk 0:00:00]} 0-1


[Site "https://www.chess.com"]

[Event "Titled Tuesday Blitz May 2 Early 2023"]
[White "Durarbayli, Vasif"]
[Black "Rios Escobar, Adan"]
[WhiteFideId "13402935"]
[BlackFideId "3403645"]
[WhiteElo "2551"]
[BlackElo "2234"]
[Result "1-0"]
[Round "01"]
[TimeControl "180+2"]
[Date "2023.05.02"]
[WhiteClock "0:00:00"]
[BlackClock "0:00:00"]

1. e4 {[%clk 0:00:01]}  c5 {[%clk 0:00:01]} 2. Nf3 {[%clk 0:00:01]}  d6 {[%clk 0:00:01]} 3. d4 {[%clk 0:00:01]}  cxd4 {[%clk 0:00:01]} 4. Nxd4 {[%clk 0:00:01]}  Nf6 {[%clk 0:00:01]} 5. Nc3 {[%clk 0:00:01]}  a6 {[%clk 0:00:01]} 6. Be2 {[%clk 0:00:01]}  e5 {[%clk 0:00:01]} 7. Nb3 {[%clk 0:00:01]}  Be6 {[%clk 0:00:01]} 8. O-O {[%clk 0:00:01]}  Nbd7 {[%clk 0:00:01]} 9. f4 {[%clk 0:00:01]}  Rc8 {[%clk 0:00:01]} 10. Kh1 {[%clk 0:00:01]}  Be7 {[%clk 0:00:01]} 11. f5 {[%clk 0:00:01]}  Bc4 {[%clk 0:00:01]} 12. Bxc4 {[%clk 0:00:01]}  Rxc4 {[%clk 0:00:01]} 13. Qd3 {[%clk 0:00:01]}  Qc8 {[%clk 0:00:01]} 14. Bg5 {[%clk 0:00:01]}  b5 {[%clk 0:00:01]} 15. a3 {[%clk 0:00:01]}  h6 {[%clk 0:00:01]} 16. Bh4 {[%clk 0:00:01]}  Nc5 {[%clk 0:00:01]} 17. Nxc5 {[%clk 0:00:01]}  Qxc5 {[%clk 0:00:01]} 18. Bxf6 {[%clk 0:00:01]}  Bxf6 {[%clk 0:00:01]} 19. Rad1 {[%clk 0:00:01]}  Rd4 {[%clk 0:00:00]} 20. Qf3 {[%clk 0:00:01]}  O-O {[%clk 0:00:00]} 21. Rde1 {[%clk 0:00:00]}  Rc8 {[%clk 0:00:00]} 22. Re2 {[%clk 0:00:00]}  Rc4 {[%clk 0:00:00]} 23. Rff2 {[%clk 0:00:00]}  Bg5 {[%clk 0:00:00]} 24. Nd5 {[%clk 0:00:00]}  Kf8 {[%clk 0:00:00]} 25. g3 {[%clk 0:00:00]}  Bc1 {[%clk 0:00:00]} 26. c3 {[%clk 0:00:00]}  Qc6 {[%clk 0:00:00]} 27. f6 {[%clk 0:00:00]}  g6 {[%clk 0:00:00]} 28. Rc2 {[%clk 0:00:00]}  Bg5 {[%clk 0:00:00]} 29. h4 {[%clk 0:00:00]}  b4 {[%clk 0:00:00]} 30. axb4 {[%clk 0:00:00]}  a5 {[%clk 0:00:00]} 31. bxa5 {[%clk 0:00:00]}  Ra4 {[%clk 0:00:00]} 32. hxg5 {[%clk 0:00:00]}  hxg5 {[%clk 0:00:00]} 33. b4 {[%clk 0:00:00]}  Ra1+ {[%clk 0:00:00]} 34. Kg2 {[%clk 0:00:00]}  Qd7 {[%clk 0:00:00]} 35. Rf1 {[%clk 0:00:00]}  Rxf1 {[%clk 0:00:00]} 36. Qxf1 {[%clk 0:00:00]}  Rd8 {[%clk 0:00:00]} 37. Qh1 {[%clk 0:00:00]} 1-0


[Site "https://www.chess.com"]